fUST/lending_fUST_20250905
["ID","MTS","AMOUNT","RATE_DAILY","PERIOD"]
[383600044,1757022643479,-300.0,0.00016329,2]
[383600046,1757022643488,-300.0,0.00016329,2]
[383600048,1757022643498,-300.0,0.00016329,2]
[383600050,1757022643508,-300.0,0.00016329,2]
[383600052,1757022643517,-300.0,0.00016329,2]
[383600054,1757022643526,-300.0,0.00016329,2]
[383600057,1757022643536,-300.0,0.00016329,2]
[383600060,1757022643545,-300.0,0.00016329,2]
[383600063,1757022643556,-300.0,0.00016329,2]
[383600066,1757022643565,-300.0,0.00016329,2]
[383600068,1757022643575,-480.0,0.00016346,2]
[383600070,1757022643585,-480.0,0.00016346,2]
[383600072,1757022643594,-480.0,0.00016346,2]
[383600074,1757022643604,-480.0,0.00016346,2]
[383600076,1757022643613,-1343.63442457,0.00016346,2]
[383600078,1757022643622,-500.0,0.00016347,2]
[383600080,1757022643632,-500.0,0.00016347,2]
[383600082,1757022643641,-500.0,0.00016347,2]
[383600084,1757022643650,-480.0,0.00016347,2]
[383600086,1757022643660,-480.0,0.00016347,2]
[383600089,1757022643669,-312.8,0.00016347,2]
[383600091,1757022643679,-480.0,0.00016347,2]
[383600092,1757022643688,-480.0,0.00016347,2]
[383600095,1757022643697,-504.18,0.00016347,2]
[383600096,1757022643706,-480.0,0.00016347,2]
[383600098,1757022643716,-480.0,0.00016347,2]
[383600101,1757022643726,-202.86,0.00016347,2]
[383600103,1757022643735,-480.0,0.00016347,2]
[383600105,1757022643744,-540.77838065,0.00016347,2]
[383600107,1757022643754,-480.0,0.00016347,2]
[383600109,1757022643763,-480.0,0.00016347,2]
[383600111,1757022643772,-480.0,0.00016347,2]
[383600113,1757022643781,-480.0,0.00016347,2]
[383600115,1757022643790,-480.0,0.00016347,2]
[383600117,1757022643799,-480.0,0.00016347,2]
[383600119,1757022643809,-480.0,0.00016347,2]
[383600121,1757022643818,-480.0,0.00016347,2]
[383600123,1757022643828,-480.0,0.00016347,2]
[383600125,1757022643837,-212.86,0.00016347,2]
[383600127,1757022643846,-210.69,0.00016347,2]
[383600129,1757022643856,-480.0,0.00016347,2]
[383600131,1757022643865,-489.76,0.00016347,2]
[383600132,1757022643874,-480.0,0.00016347,2]
[383600134,1757022643884,-480.0,0.00016347,2]
[383600136,1757022643894,-334.51292463,0.00016347,2]
[383600138,1757022643903,-480.0,0.00016347,2]
[383600140,1757022643912,-480.0,0.00016347,2]
[383600142,1757022643924,-480.0,0.00016347,2]
[383600144,1757022643933,-480.0,0.00016347,2]
[383600146,1757022643943,-480.0,0.00016361,2]
[383600148,1757022643952,-792.43,0.00016361,2]
[383600151,1757022643963,-480.0,0.00016361,2]
[383600153,1757022643972,-500.0,0.00016362,2]
[383600155,1757022643982,-480.0,0.00016362,2]
[383600157,1757022643992,-480.0,0.00016362,2]
[383600159,1757022644001,-572.76,0.00016362,2]
[383600161,1757022644011,-480.0,0.00016362,2]
[383600163,1757022644020,-520.0165151,0.00016362,2]
[383600165,1757022644029,-480.0,0.00016362,2]
[383600167,1757022644039,-480.0,0.00016362,2]
[383600168,1757022644048,-480.0,0.00016362,2]
[383600170,1757022644057,-480.0,0.00016362,2]
[383600172,1757022644066,-530.99,0.00016362,2]
[383600175,1757022644076,-480.0,0.00016362,2]
[383600176,1757022644086,-480.0,0.00016362,2]
[383600178,1757022644096,-480.0,0.00016362,2]
[383600180,1757022644106,-480.0,0.00016362,2]
[383600183,1757022644116,-480.0,0.00016362,2]
[383600185,1757022644125,-480.0,0.00016362,2]
[383600187,1757022644134,-559.21,0.00016362,2]
[383600189,1757022644144,-480.0,0.00016362,2]
[383600191,1757022644153,-480.0,0.00016362,2]
[383600192,1757022644162,-480.0,0.00016362,2]
[383600195,1757022644171,-480.0,0.00016362,2]
[383600197,1757022644181,-480.0,0.00016362,2]
[383600198,1757022644190,-516.58,0.00016362,2]
[383600201,1757022644200,-480.0,0.00016362,2]
[383600202,1757022644209,-480.0,0.00016362,2]
[383600205,1757022644219,-480.0,0.00016362,2]
[383600206,1757022644229,-480.0,0.00016362,2]
[383600209,1757022644239,-480.0,0.00016362,2]
[383600210,1757022644248,-480.0,0.00016362,2]
[383600213,1757022644258,-480.0,0.00016362,2]
[383600215,1757022644268,-480.0,0.00016362,2]
[383600216,1757022644277,-480.0,0.00016362,2]
[383600218,1757022644287,-500.0,0.00016398,2]
[383600220,1757022644297,-500.0,0.00016398,2]
[383600222,1757022644307,-3000.0,0.000164,2]
[383600225,1757022644317,-3000.0,0.000164,2]
[383600227,1757022644326,-300.0,0.00016435,2]
[383600229,1757022644336,-300.0,0.00016435,2]
[383600231,1757022644346,-300.0,0.00016435,2]
[383600233,1757022644355,-500.0,0.00016438,2]
[383600235,1757022644364,-500.0,0.00016438,2]
[383600236,1757022644374,-500.0,0.00016438,2]
[383600238,1757022644383,-500.0,0.00016438,2]
[383600240,1757022644392,-381.02978541,0.00016438,2]
[383600242,1757022644402,-151.0,0.00016438,2]
[383600244,1757022644411,-153.898817,0.00016438,2]
[383600246,1757022644421,-500.0,0.00016438,2]
[383600248,1757022644431,-480.0,0.00016456,2]
[383600250,1757022644440,-480.0,0.00016456,2]
[383600253,1757022644450,-500.0,0.00016459,2]
[383600255,1757022644460,-500.0,0.00016459,2]
[383600257,1757022644469,-500.0,0.00016459,2]
[383600259,1757022644479,-500.0,0.00016509,2]
[383600261,1757022644489,-480.0,0.00016556,2]
[383600263,1757022644498,-480.0,0.00016556,2]
[383600265,1757022644508,-480.0,0.00016556,2]
[383600267,1757022644517,-480.0,0.00016556,2]
[383600269,1757022644527,-500.0,0.00016572,2]
[383600271,1757022644536,-504.1131352,0.00016591,2]
[383600273,1757022644546,-480.0,0.0001662,2]
[383600275,1757022644556,-461.34905878,0.0001662,2]
[383600277,1757022644566,-480.0,0.0001662,2]
[383600279,1757022644576,-480.0,0.0001662,2]
[383600281,1757022644586,-232.25803472,0.00016621,2]
[383600283,1757022644595,-480.0,0.00016621,2]
[383600285,1757022644605,-480.0,0.00016621,2]
[383600287,1757022644614,-480.0,0.00016621,2]
[383600289,1757022644624,-480.0,0.00016621,2]
[383600291,1757022644634,-409.78,0.00016621,2]
[383600293,1757022644644,-480.0,0.00016621,2]
[383600295,1757022644653,-480.0,0.00016621,2]
[383600297,1757022644662,-480.0,0.00016621,2]
[383600299,1757022644672,-480.0,0.00016621,2]
[383600301,1757022644681,-490.11,0.00016621,2]
[383600303,1757022644690,-480.0,0.00016621,2]
[383600305,1757022644700,-480.0,0.00016621,2]
[383600307,1757022644709,-480.0,0.00016621,2]
[383600309,1757022644719,-539.75794929,0.00016621,2]
[383600311,1757022644728,-480.0,0.00016621,2]
[383600313,1757022644738,-480.0,0.00016621,2]
[383600316,1757022644834,-480.0,0.00016621,2]
[383600317,1757022644855,-379.22277158,0.00016621,2]
[383600318,1757022644864,-177.98,0.00016621,2]
[383600319,1757022644873,-480.0,0.00016635,2]
[383600320,1757022644883,-792.43,0.00016635,2]
[383600321,1757022644892,-480.0,0.00016635,2]
[383600322,1757022644901,-500.0,0.00016636,2]
[383600323,1757022644910,-480.0,0.00016636,2]
[383600324,1757022644920,-480.0,0.00016636,2]
[383600326,1757022644933,-480.0,0.00016636,2]
[383600328,1757022644943,-480.0,0.00016636,2]
[383600330,1757022644952,-480.0,0.00016636,2]
[383600332,1757022644961,-466.72609868,0.00016636,2]
[383600334,1757022644972,-480.0,0.00016636,2]
[383600336,1757022644981,-480.0,0.00016636,2]
[383600338,1757022644991,-480.0,0.00016636,2]
[383600339,1757022645001,-480.0,0.00016636,2]
[383600341,1757022645011,-480.0,0.00016636,2]
[383600343,1757022645021,-480.0,0.00016636,2]
[383600346,1757022645030,-480.0,0.00016636,2]
[383600347,1757022645040,-252.5447912,0.00016636,2]
[383600349,1757022645049,-480.0,0.00016636,2]
[383600352,1757022645058,-565.86,0.00016636,2]
[383600354,1757022645068,-480.0,0.00016636,2]
[383600356,1757022645080,-516.58,0.00016636,2]
[383600358,1757022645090,-480.0,0.00016636,2]
[383600360,1757022645100,-480.0,0.00016636,2]
[383600362,1757022645110,-480.0,0.00016636,2]
[383600364,1757022645119,-549.55,0.00016636,2]
[383600366,1757022645129,-516.35,0.00016636,2]
[383600367,1757022645138,-480.0,0.00016636,2]
[383600369,1757022645147,-207.7679744,0.00016689,2]
[383600371,1757022645157,-480.0,0.0001673,2]
[383600373,1757022645167,-480.0,0.0001673,2]
[383600375,1757022645176,-500.0,0.00016732,2]
[383600377,1757022645186,-3000.0,0.0001678,2]
[383600379,1757022645195,-359.0,0.00016824,2]
[383600381,1757022645204,-480.0,0.0001683,2]
[383600383,1757022645214,-480.0,0.0001683,2]
[383600385,1757022645223,-281.52570973,0.0001683,2]
[383600387,1757022645233,-480.0,0.0001683,2]
[383600389,1757022645242,-480.0,0.00016894,2]
[383600391,1757022645252,-480.0,0.00016894,2]
[383600393,1757022645261,-480.0,0.00016894,2]
[383600395,1757022645271,-1000.0,0.00016894,2]
[383600397,1757022645280,-1000.0,0.00016894,2]
[383600399,1757022645290,-1000.0,0.00016894,2]
[383600401,1757022645299,-480.0,0.00016895,2]
[383600403,1757022645308,-480.0,0.00016895,2]
[383600405,1757022645318,-480.0,0.00016895,2]
[383600407,1757022645327,-442.24477664,0.00016895,2]
[383600409,1757022645336,-480.0,0.00016895,2]
[383600411,1757022645347,-480.0,0.00016895,2]
[383600413,1757022645356,-480.0,0.00016895,2]
[383600415,1757022645365,-480.0,0.00016895,2]
[383600417,1757022645374,-203.63943266,0.00016895,2]
[383600419,1757022645384,-480.0,0.00016895,2]
[383600421,1757022645394,-480.0,0.00016895,2]
[383600423,1757022645404,-480.0,0.00016895,2]
[383600425,1757022645414,-480.0,0.00016895,2]
[383600427,1757022645423,-480.0,0.00016909,2]
[383600429,1757022645432,-792.43,0.00016909,2]
[383600431,1757022645441,-480.0,0.00016909,2]
[383600433,1757022645450,-500.0,0.0001691,2]
[383600435,1757022645460,-422.60439729,0.0001691,2]
[383600437,1757022645469,-480.0,0.0001691,2]
[383600439,1757022645478,-480.0,0.0001691,2]
[383600441,1757022645487,-480.0,0.0001691,2]
[383600443,1757022645496,-480.0,0.0001691,2]
[383600445,1757022645506,-480.0,0.0001691,2]
[383600447,1757022645515,-480.0,0.0001691,2]
[383600449,1757022645524,-480.0,0.0001691,2]
[383600451,1757022645533,-480.0,0.0001691,2]
[383600453,1757022645543,-480.0,0.0001691,2]
[383600455,1757022645553,-480.0,0.0001691,2]
[383600457,1757022645562,-516.58,0.0001691,2]
[383600459,1757022645572,-480.0,0.0001691,2]
[383600461,1757022645581,-480.0,0.0001691,2]
[383600463,1757022645591,-1117.49000262,0.00016946,2]
[383600465,1757022645601,-1000.0,0.00016946,2]
[383600467,1757022645611,-420.0,0.00016949,2]
[383600469,1757022645621,-1343.63442457,0.00016979,2]
[383600471,1757022645630,-480.0,0.00017004,2]
[383600473,1757022645640,-1000.0,0.00017007,2]
[383600475,1757022645649,-1000.0,0.00017007,2]
[383600477,1757022645658,-480.0,0.00017104,2]
[383600479,1757022645668,-480.0,0.00017104,2]
[383600481,1757022645677,-480.0,0.00017104,2]
[383600483,1757022645687,-480.0,0.00017168,2]
[383600485,1757022645697,-480.0,0.00017168,2]
[383600487,1757022645706,-480.0,0.00017168,2]
[383600489,1757022645716,-481.24843507,0.00017169,2]
[383600491,1757022645726,-480.0,0.00017169,2]
[383600493,1757022645735,-480.0,0.00017169,2]
[383600495,1757022645745,-480.0,0.00017169,2]
[383600497,1757022645755,-480.0,0.00017169,2]
[383600499,1757022645764,-480.0,0.00017169,2]
[383600501,1757022645773,-480.0,0.00017169,2]
[383600503,1757022645783,-480.0,0.00017169,2]
[383600505,1757022645793,-480.0,0.00017169,2]
[383600507,1757022645803,-480.0,0.00017169,2]
[383600509,1757022645813,-161.04887008,0.00017169,2]
[383600511,1757022645822,-194.72792766,0.00017175,2]
[383600513,1757022645831,-480.0,0.00017183,2]
[383600515,1757022645841,-792.43,0.00017183,2]
[383600517,1757022645850,-480.0,0.00017183,2]
[383600519,1757022645860,-500.0,0.00017184,2]
[383600521,1757022645870,-593.56679552,0.00017184,2]
[383600523,1757022645879,-480.0,0.00017184,2]
[383600525,1757022645888,-480.0,0.00017184,2]
[383600527,1757022645898,-469.71626978,0.00017184,2]
[383600529,1757022645907,-480.0,0.00017184,2]
[383600532,1757022645917,-480.0,0.00017184,2]
[383600534,1757022645933,-480.0,0.00017184,2]
[383600536,1757022645942,-480.0,0.00017184,2]
[383600538,1757022645951,-427.7807,0.00017184,2]
[383600540,1757022645961,-480.0,0.00017184,2]
[383600542,1757022645972,-516.58,0.00017184,2]
[383600544,1757022645982,-480.0,0.00017184,2]
[383600546,1757022645992,-480.0,0.00017184,2]
[383600548,1757022646003,-500.0,0.00017196,2]
[383600550,1757022646013,-2465.22,0.00017268,3]
[383600552,1757022646023,-1232.62,0.00017268,3]
[383600554,1757022646033,-616.3,0.00017268,3]
[383600556,1757022646043,-308.16,0.00017268,3]
[383600558,1757022646053,-1000.0,0.0001728,2]
[383600560,1757022646063,-480.0,0.00017378,2]
[383600562,1757022646072,-480.0,0.00017378,2]
[383600564,1757022646082,-166.49093637,0.00017378,2]
[383600566,1757022646093,-480.0,0.00017442,2]
[383600568,1757022646103,-480.0,0.00017442,2]
[383600570,1757022646112,-480.0,0.00017442,2]
[383600572,1757022646122,-1500.0,0.00017442,2]
[383600574,1757022646131,-1500.0,0.00017442,2]
[383600576,1757022646141,-480.0,0.00017443,2]
[383600578,1757022646150,-603.31964346,0.00017443,2]
[383600580,1757022646159,-480.0,0.00017443,2]
[383600582,1757022646169,-303.45,0.00017443,2]
[383600584,1757022646178,-480.0,0.00017443,2]
[383600586,1757022646187,-480.0,0.00017443,2]
[383600588,1757022646196,-480.0,0.00017443,2]
[383600590,1757022646205,-235.9623415,0.00017443,2]
[383600592,1757022646214,-480.0,0.00017457,2]
[383600594,1757022646223,-792.43,0.00017457,2]
[383600596,1757022646233,-480.0,0.00017457,2]
[383600598,1757022646242,-500.0,0.00017458,2]
[383600600,1757022646252,-271.25,0.00017458,2]
[383600602,1757022646261,-480.0,0.00017458,2]
[383600604,1757022646271,-480.0,0.00017458,2]
[383600606,1757022646280,-480.0,0.00017458,2]
[383600608,1757022646290,-480.0,0.00017458,2]
[383600610,1757022646299,-480.0,0.00017458,2]
[383600612,1757022646309,-480.0,0.00017458,2]
[383600614,1757022646318,-516.58,0.00017458,2]
[383600616,1757022646327,-480.0,0.00017458,2]
[383600618,1757022646337,-480.0,0.00017458,2]
[383600620,1757022646347,-500.78631096,0.00017534,2]
[383600622,1757022646356,-1500.0,0.00017555,2]
[383600624,1757022646366,-1343.63442457,0.00017611,2]
[383600626,1757022646375,-392.75,0.00017652,2]
[383600628,1757022646384,-554.467478,0.00017652,2]
[383600630,1757022646394,-480.0,0.00017716,2]
[383600632,1757022646403,-480.0,0.00017716,2]
[383600634,1757022646413,-480.0,0.00017716,2]
[383600637,1757022646422,-480.0,0.00017717,2]
[383600640,1757022646432,-480.0,0.00017717,2]
[383600643,1757022646442,-480.0,0.00017717,2]
[383600646,1757022646451,-480.0,0.00017717,2]
[383600649,1757022646460,-480.0,0.00017717,2]
[383600652,1757022646469,-480.0,0.00017731,2]
[383600655,1757022646479,-792.43,0.00017731,2]
[383600658,1757022646488,-480.0,0.00017731,2]
[383600662,1757022646497,-500.0,0.00017732,2]
[383600665,1757022646507,-480.0,0.00017732,2]
[383600668,1757022646516,-480.0,0.00017732,2]
[383600671,1757022646526,-480.0,0.00017732,2]
[383600674,1757022646535,-480.0,0.00017732,2]
[383600677,1757022646544,-480.0,0.00017732,2]
[383600680,1757022646554,-480.0,0.00017732,2]
[383600683,1757022646563,-516.58,0.00017732,2]
[383600685,1757022646572,-480.0,0.00017732,2]
[383600688,1757022646584,-500.0,0.00017828,2]
[383600689,1757022646595,-3000.0,0.00017876,2]
[383600692,1757022646606,-160.0,0.00017954,2]
[383600693,1757022646617,-797.7775795,0.00017966,2]
[383600695,1757022646629,-480.0,0.0001799,2]
[383600697,1757022646639,-480.0,0.0001799,2]
[383600699,1757022646648,-480.0,0.0001799,2]
[383600701,1757022646657,-1914.66697941,0.0001799,2]
[383600703,1757022646667,-2000.0,0.0001799,2]
[383600705,1757022646676,-321.33,0.00017991,2]
[383600707,1757022646686,-480.0,0.00017991,2]
[383600709,1757022646695,-480.0,0.00017991,2]
[383600711,1757022646704,-480.0,0.00017991,2]
[383600713,1757022646713,-480.0,0.00017991,2]
[383600715,1757022646723,-480.0,0.00018005,2]
[383600717,1757022646732,-792.43,0.00018005,2]
[383600719,1757022646741,-480.0,0.00018005,2]
[383600721,1757022646751,-500.0,0.00018006,2]
[383600723,1757022646760,-480.0,0.00018006,2]
[383600725,1757022646769,-480.0,0.00018006,2]
[383600727,1757022646779,-480.0,0.00018006,2]
[383600729,1757022646788,-480.0,0.00018006,2]
[383600731,1757022646798,-480.0,0.00018006,2]
[383600733,1757022646807,-480.0,0.00018006,2]
[383600735,1757022646816,-516.58,0.00018006,2]
[383600737,1757022646826,-480.0,0.00018006,2]
[383600739,1757022646835,-500.0,0.00018056,2]
[383600741,1757022646844,-533.174441,0.00018082,7]
[383600743,1757022646854,-2000.0,0.00018103,2]
[383600745,1757022646863,-1343.63442457,0.00018243,2]
[383600746,1757022646872,-480.0,0.00018264,2]
[383600748,1757022646882,-335.96,0.00018264,2]
[383600750,1757022646892,-480.0,0.00018264,2]
[383600752,1757022646902,-480.0,0.00018265,2]
[383600755,1757022646914,-480.0,0.00018265,2]
[383600756,1757022646932,-292.0,0.00018265,2]
[383600758,1757022646942,-480.0,0.00018265,2]
[383600760,1757022646951,-540.11,0.00018279,2]
[383600762,1757022646960,-792.43,0.00018279,2]
[383600764,1757022646970,-480.0,0.00018279,2]
[383600766,1757022646978,-500.0,0.0001828,2]
[383600768,1757022646988,-527.91,0.0001828,2]
[383600770,1757022646998,-480.0,0.0001828,2]
[383600772,1757022647007,-480.0,0.0001828,2]
[383600774,1757022647017,-480.0,0.0001828,2]
[383600776,1757022647027,-480.0,0.0001828,2]
[383600778,1757022647036,-480.0,0.0001828,2]
[383600780,1757022647046,-516.58,0.0001828,2]
[383600782,1757022647056,-480.0,0.0001828,2]
[383600785,1757022647066,-975.0,0.00018343,2]
[383600787,1757022647077,-633.0,0.00018343,2]
[383600788,1757022647088,-2153.0,0.00018343,2]
[383600791,1757022647100,-409.0,0.00018343,2]
[383600793,1757022647109,-425.265,0.00018343,2]
[383600795,1757022647119,-3925.3124011,0.00018488,2]
[383600797,1757022647129,-260.0,0.00018502,2]
[383600799,1757022647138,-480.0,0.00018538,2]
[383600801,1757022647147,-480.0,0.00018538,2]
[383600803,1757022647157,-2500.0,0.00018538,2]
[383600814,1757022647263,-480.0,0.00018539,2]
[383600816,1757022647273,-480.0,0.00018539,2]
[383600818,1757022647283,-480.0,0.00018539,2]
[383600820,1757022647292,-587.0,0.0001854,2]
[383600821,1757022647301,-180.83220284,0.00018544,2]
[383600822,1757022647311,-792.43,0.00018553,2]
[383600823,1757022647320,-480.0,0.00018553,2]
[383600824,1757022647329,-529.33191851,0.00018554,2]
[383600825,1757022647339,-480.0,0.00018554,2]
[383600826,1757022647348,-480.0,0.00018554,2]
[383600827,1757022647358,-220.68,0.00018554,2]
[383600828,1757022647368,-480.0,0.00018554,2]
[383600829,1757022647377,-480.0,0.00018554,2]
[383600831,1757022647386,-516.58,0.00018554,2]
[383600833,1757022647396,-492.21,0.00018554,2]
[383600835,1757022647405,-2500.0,0.00018651,2]
[383600837,1757022647414,-153.0,0.00018712,2]
[383600838,1757022647423,-160.0,0.00018764,3]
[383600840,1757022647434,-569.36,0.00018812,2]
[383600843,1757022647443,-480.0,0.00018812,2]
[383600845,1757022647452,-480.0,0.00018813,2]
[383600847,1757022647462,-480.0,0.00018813,2]
[383600849,1757022647471,-321.93,0.00018813,2]
[383600851,1757022647481,-3187.91920767,0.00018821,2]
[383600853,1757022647490,-792.43,0.00018827,2]
[383600855,1757022647499,-480.0,0.00018827,2]
[383600857,1757022647509,-480.0,0.00018828,2]
[383600859,1757022647519,-480.0,0.00018828,2]
[383600860,1757022647529,-480.0,0.00018828,2]
[383600863,1757022647540,-480.0,0.00018828,2]
[383600865,1757022647550,-516.58,0.00018828,2]
[383600866,1757022647559,-25373.139892,0.00018856,2]
[383600868,1757022647568,-302.51602579,0.000189,2]
[383600870,1757022647578,-302.51602579,0.000189,2]
[383600872,1757022647587,-3000.0,0.00018972,2]
[383600874,1757022647597,-4026.0,0.00019,2]
[383600876,1757022647606,-352.6981167,0.00019003,2]
[383600878,1757022647615,-360.0,0.0001905,2]
[383600881,1757022647625,-480.0,0.00019086,2]
[383600882,1757022647635,-3000.0,0.00019086,2]
[383600884,1757022647644,-480.0,0.00019087,2]
[383600886,1757022647654,-480.0,0.00019087,2]
[383600889,1757022647664,-875.8555846,0.00019087,2]
[383600891,1757022647674,-302.51602579,0.00019089,2]
[383600892,1757022647683,-302.51602579,0.00019089,2]
[383600895,1757022647693,-792.43,0.00019101,2]
[383600896,1757022647702,-480.0,0.00019101,2]
[383600898,1757022647712,-480.0,0.00019102,2]
[383600901,1757022647722,-480.0,0.00019102,2]
[383600903,1757022647731,-480.0,0.00019102,2]
[383600905,1757022647741,-493.13,0.00019102,2]
[383600907,1757022647750,-516.58,0.00019102,2]
[383600909,1757022647759,-153.103015,0.00019107,3]
[383600911,1757022647768,-2550.46260552,0.00019199,2]
[383600913,1757022647777,-302.51602579,0.00019278,2]
[383600915,1757022647787,-302.51602579,0.00019278,2]
[383600917,1757022647796,-480.0,0.0001936,2]
[383600919,1757022647805,-480.0,0.00019361,2]
[383600921,1757022647815,-480.0,0.00019361,2]
[383600923,1757022647825,-792.43,0.00019375,2]
[383600925,1757022647834,-480.0,0.00019375,2]
[383600927,1757022647844,-480.0,0.00019376,2]
[383600929,1757022647853,-480.0,0.00019376,2]
[383600931,1757022647863,-480.0,0.00019376,2]
[383600933,1757022647873,-516.58,0.00019376,2]
[383600935,1757022647882,-302.51602579,0.00019467,2]
[383600937,1757022647891,-342.35025018,0.00019467,2]
[383600939,1757022647900,-5661.5127675,0.00019534,2]
[383600941,1757022647910,-460.0,0.00019598,2]
[383600943,1757022647920,-480.0,0.00019634,2]
[383600945,1757022647936,-3500.0,0.00019634,2]
[383600947,1757022647946,-480.0,0.00019635,2]
[383600949,1757022647956,-480.0,0.00019635,2]
[383600951,1757022647965,-792.43,0.00019649,2]
[383600953,1757022647978,-480.0,0.00019649,2]
[383600955,1757022647988,-480.0,0.0001965,2]
[383600957,1757022647997,-480.0,0.0001965,2]
[383600959,1757022648007,-480.0,0.0001965,2]
[383600961,1757022648016,-516.58,0.0001965,2]
[383600963,1757022648026,-302.51602579,0.00019656,2]
[383600965,1757022648035,-453.77403868,0.00019845,4]
[383600967,1757022648045,-10543.68324181,0.000199,2]
[383600969,1757022648054,-480.0,0.00019908,2]
[383600971,1757022648064,-7339.08659859,0.00019909,2]
[383600973,1757022648074,-362.25,0.00019909,2]
[383600975,1757022648084,-480.0,0.00019909,2]
[383600977,1757022648094,-792.43,0.00019923,2]
[383600979,1757022648103,-480.0,0.00019923,2]
[383600981,1757022648113,-480.0,0.00019924,2]
[383600983,1757022648123,-480.0,0.00019924,2]
[383600985,1757022648132,-480.0,0.00019924,2]
[383600987,1757022648142,-516.58,0.00019924,2]
[383600989,1757022648151,-156.4,0.00019945,2]
[383600991,1757022648161,-200.72160584,0.0001998,2]
[383600993,1757022648171,-303.8632618,0.0002,2]
[383600995,1757022648181,-151.25801289,0.0002,2]
[383600997,1757022648191,-3767.18506511,0.0002,4]
[383601012,1757022648316,-232.81493489,0.0002,4]
[383601014,1757022648330,-369.18506351,0.00020034,4]
[383601017,1757022648346,-84.58897517,0.00020034,4]
[383601019,1757022648360,-3000.0,0.00020068,2]
[383601021,1757022648374,-17.09036537,0.00020146,2]
[383601033,1757022648470,-160.0,0.00016228,2]
[383601035,1757022648484,-480.0,0.00017732,2]
[383601037,1757022648496,-480.0,0.00018006,2]
[383601040,1757022648508,-480.0,0.0001828,2]
[383601042,1757022648519,-480.0,0.00018554,2]
[383601044,1757022648529,-542.90963463,0.00020146,2]
[383601046,1757022648541,-480.0,0.00020182,2]
[383601048,1757022648553,-1210.61373825,0.00020182,2]
[383601051,1757022648566,-480.0,0.00020183,2]
[383601053,1757022648579,-533.786275,0.00020187,2]
[383601056,1757022648593,-792.43,0.00020197,2]
[383601058,1757022648606,-480.0,0.00020197,2]
[383601060,1757022648619,-480.0,0.00020198,2]
[383601063,1757022648633,-480.0,0.00020198,2]
[383601065,1757022648646,-480.0,0.00020198,2]
[383601067,1757022648658,-516.58,0.00020198,2]
[383601069,1757022648668,-178.514,0.00020214,2]
[383601072,1757022648679,-453.77403868,0.00020223,4]
[383601074,1757022648690,-823.0,0.00020281,2]
[383601076,1757022648702,-453.77403868,0.00020412,4]
[383601079,1757022648716,-480.0,0.00020456,2]
[383601081,1757022648728,-584.89,0.00020457,2]
[383601083,1757022648740,-792.43,0.00020471,2]
[383601085,1757022648750,-480.0,0.00020471,2]
[383601087,1757022648762,-480.0,0.00020472,2]